fUSD/lending_fUSD_20241222
["ID","MTS","AMOUNT","RATE_DAILY","PERIOD"]
[346348692,1734903049570,-500.0,0.00019726,2]
[346348693,1734903049580,-500.0,0.00019726,2]
[346348694,1734903049591,-500.0,0.00019726,2]
[346348695,1734903049601,-7804.83,0.00019726,2]
[346348696,1734903049611,-500.0,0.00019726,2]
[346348697,1734903049621,-500.0,0.00019726,2]
[346348698,1734903049631,-500.0,0.00019726,2]
[346348699,1734903049643,-500.0,0.00019726,2]
[346348700,1734903049655,-500.0,0.00019726,2]
[346348701,1734903049664,-500.0,0.00019726,2]
[346348702,1734903049674,-2407.46,0.00019726,2]
[346348703,1734903049684,-500.0,0.00019726,2]
[346348704,1734903049695,-209.44546343,0.00019726,2]
[346348705,1734903049705,-150.0,0.00019726,2]
[346348706,1734903049715,-637.97,0.00019726,2]
[346348707,1734903049727,-500.0,0.00019726,2]
[346348708,1734903049737,-500.0,0.00019726,2]
[346348709,1734903049747,-1386.57,0.00019726,2]
[346348710,1734903049757,-868.05,0.00019726,2]
[346348711,1734903049767,-653.32,0.00019726,2]
[346348712,1734903049780,-1613.71,0.00019726,2]
[346348713,1734903049790,-500.0,0.00019726,2]
[346348714,1734903049800,-500.0,0.00019726,2]
[346348715,1734903049810,-1080.450673,0.00019726,2]
[346348716,1734903049820,-500.0,0.00019726,2]
[346348717,1734903049830,-1541.41,0.00019726,2]
[346348718,1734903049839,-500.0,0.00019726,2]
[346348719,1734903049849,-150.0,0.00019727,2]
[346348720,1734903049859,-150.0,0.00019728,2]
[346348721,1734903049869,-150.0,0.00019731,2]
[346348722,1734903049878,-150.0,0.00019733,2]
[346348723,1734903049888,-406.82461251,0.00019736,2]
[346348724,1734903049898,-150.0,0.00019737,2]
[346348725,1734903049908,-150.0,0.00019737,2]
[346348726,1734903049918,-150.0,0.00019739,2]
[346348727,1734903049928,-150.0,0.00019741,2]
[346348728,1734903049938,-150.0,0.00019741,2]
[346348729,1734903049948,-150.0,0.00019742,2]
[346348730,1734903049959,-150.0,0.00019743,2]
[346348731,1734903049969,-150.0,0.00019746,2]
[346348732,1734903049980,-655.07,0.00019746,2]
[346348733,1734903049990,-150.0,0.00019748,2]
[346348734,1734903050000,-150.0,0.00019748,2]
[346348735,1734903050010,-150.0,0.0001975,2]
[346348736,1734903050021,-150.0,0.00019759,2]
[346348737,1734903050032,-150.0,0.0001976,2]
[346348738,1734903050043,-150.0,0.00019762,2]
[346348739,1734903050053,-150.0,0.00019762,2]
[346348740,1734903050063,-150.0,0.00019763,2]
[346348741,1734903050073,-1500.0,0.00019764,2]
[346348742,1734903050086,-150.0,0.00019764,2]
[346348743,1734903050096,-150.0,0.00019766,2]
[346348744,1734903050106,-812.15,0.00019767,2]
[346348745,1734903050116,-150.0,0.00019769,2]
[346348746,1734903050126,-150.0,0.00019772,2]
[346348747,1734903050135,-150.0,0.00019773,2]
[346348748,1734903050145,-1500.0,0.00019776,2]
[346348749,1734903050155,-150.0,0.00019776,2]
[346348750,1734903050165,-150.0,0.00019777,2]
[346348751,1734903050176,-150.0,0.00019777,2]
[346348752,1734903050185,-1500.0,0.00019778,2]
[346348753,1734903050195,-150.0,0.00019782,2]
[346348754,1734903050206,-150.0,0.00019782,2]
[346348755,1734903050216,-4163.41580667,0.0001979,2]
[346348756,1734903050226,-1905.652,0.00019791,2]
[346348757,1734903050237,-941.0,0.00019791,2]
[346348758,1734903050248,-835.0,0.00019791,2]
[346348759,1734903050453,-3788.288,0.00019791,2]
[346348760,1734903050465,-1256.0,0.00019791,2]
[346348761,1734903050476,-3682.0,0.00019791,2]
[346348762,1734903050486,-536.0,0.00019791,2]
[346348763,1734903050495,-1247.16,0.00019791,2]
[346348764,1734903050505,-241.374,0.00019791,2]
[346348765,1734903050516,-3886.0,0.00019791,2]
[346348766,1734903050528,-2010.0,0.00019791,2]
[346348767,1734903050538,-1265.0,0.00019791,2]
[346348768,1734903050548,-733.828,0.00019791,2]
[346348769,1734903050558,-150.0,0.00019791,2]
[346348770,1734903050568,-150.0,0.00019796,2]
[346348771,1734903050577,-1500.0,0.00019797,2]
[346348772,1734903050587,-150.0,0.00019799,2]
[346348773,1734903050596,-1614.58,0.00019799,2]
[346348774,1734903050607,-1614.58,0.00019799,2]
[346348775,1734903050616,-1614.58,0.00019799,2]
[346348776,1734903050625,-701691.40774577,0.000198,2]
[346348777,1734903050635,-28138.06258405,0.000198,2]
[346348778,1734903050648,-109751.92442705,0.000198,2]
[346348779,1734903050658,-18000.19309976,0.000198,2]
[346348780,1734903050667,-1500.0,0.000198,2]
[346348781,1734903050677,-185.49583369,0.000198,2]
[346348782,1734903050688,-150.0,0.00019801,2]
[346348783,1734903050698,-150.0,0.00019803,2]
[346348784,1734903050707,-150.0,0.00019805,2]
[346348785,1734903050717,-150.0,0.00019805,2]
[346348786,1734903050728,-366.24788264,0.00019809,2]
[346348787,1734903050738,-727.22014851,0.00019809,2]
[346348788,1734903050747,-150.0,0.00019811,2]
[346348789,1734903050757,-150.0,0.00019814,2]
[346348790,1734903050767,-150.0,0.00019818,2]
[346348791,1734903050778,-250.0,0.00019818,2]
[346348792,1734903050787,-150.0,0.00019818,2]
[346348793,1734903050796,-228.176,0.00019818,2]
[346348794,1734903050805,-150.0,0.00019818,2]
[346348795,1734903050814,-150.899,0.00019818,2]
[346348796,1734903050825,-150.0,0.00019819,2]
[346348797,1734903050834,-150.0,0.00019822,2]
[346348798,1734903050843,-150.0,0.00019824,2]
[346348799,1734903050853,-150.0,0.00019825,2]
[346348800,1734903050862,-500.0,0.00019839,2]
[346348801,1734903050872,-150.0,0.00019841,2]
[346348802,1734903050881,-1500.0,0.00019842,2]
[346348803,1734903050891,-254.54907326,0.0001985,2]
[346348804,1734903050900,-18000.19309976,0.0001985,2]
[346348805,1734903050910,-150.0,0.00019852,2]
[346348806,1734903050919,-150.0,0.00019857,2]
[346348807,1734903050929,-150.0,0.00019858,2]
[346348808,1734903050939,-150.0,0.00019859,2]
[346348809,1734903050948,-153.0,0.00019862,2]
[346348810,1734903050957,-153.0,0.00019862,2]
[346348811,1734903050967,-153.0,0.00019862,2]
[346348812,1734903050978,-153.0,0.00019862,2]
[346348813,1734903050987,-153.0,0.00019862,2]
[346348814,1734903050996,-153.0,0.00019862,2]
[346348815,1734903051005,-153.0,0.00019862,2]
[346348816,1734903051014,-153.0,0.00019862,2]
[346348817,1734903051021,-153.0,0.00019862,2]
[346348818,1734903051029,-153.0,0.00019862,2]
[346348819,1734903051035,-153.0,0.00019862,2]
[346348820,1734903051042,-153.0,0.00019862,2]
[346348821,1734903051049,-153.0,0.00019862,2]
[346348822,1734903051056,-153.0,0.00019862,2]
[346348823,1734903051063,-153.0,0.00019862,2]
[346348824,1734903051070,-153.0,0.00019862,2]
[346348825,1734903051080,-153.0,0.00019862,2]
[346348826,1734903051089,-153.0,0.00019862,2]
[346348827,1734903051098,-153.0,0.00019862,2]
[346348828,1734903051108,-153.0,0.00019862,2]
[346348829,1734903051117,-153.0,0.00019862,2]
[346348830,1734903051126,-153.0,0.00019862,2]
[346348831,1734903051135,-153.0,0.00019862,2]
[346348832,1734903051144,-153.0,0.00019862,2]
[346348833,1734903051153,-153.0,0.00019862,2]
[346348834,1734903051162,-153.0,0.00019862,2]
[346348835,1734903051171,-153.0,0.00019862,2]
[346348836,1734903051180,-153.0,0.00019862,2]
[346348837,1734903051189,-153.0,0.00019862,2]
[346348838,1734903051199,-153.0,0.00019862,2]
[346348839,1734903051208,-153.0,0.00019862,2]
[346348840,1734903051217,-153.0,0.00019862,2]
[346348841,1734903051226,-153.0,0.00019862,2]
[346348842,1734903051235,-153.0,0.00019862,2]
[346348843,1734903051243,-153.0,0.00019862,2]
[346348844,1734903051252,-153.0,0.00019862,2]
[346348845,1734903051261,-153.0,0.00019862,2]
[346348846,1734903051271,-153.0,0.00019862,2]
[346348847,1734903051280,-153.0,0.00019862,2]
[346348848,1734903051289,-153.0,0.00019862,2]
[346348849,1734903051299,-153.0,0.00019862,2]
[346348850,1734903051307,-153.0,0.00019862,2]
[346348851,1734903051317,-153.0,0.00019862,2]
[346348852,1734903051326,-153.0,0.00019862,2]
[346348853,1734903051335,-153.0,0.00019862,2]
[346348854,1734903051344,-153.0,0.00019862,2]
[346348855,1734903051353,-153.0,0.00019862,2]
[346348856,1734903051364,-153.0,0.00019862,2]
[346348857,1734903051374,-153.0,0.00019862,2]
[346348858,1734903051383,-153.0,0.00019862,2]
[346348859,1734903051392,-153.0,0.00019862,2]
[346348860,1734903051401,-153.0,0.00019862,2]
[346348861,1734903051410,-153.0,0.00019862,2]
[346348862,1734903051419,-153.0,0.00019862,2]
[346348863,1734903051428,-153.0,0.00019862,2]
[346348864,1734903051437,-153.0,0.00019862,2]
[346348865,1734903051447,-153.0,0.00019862,2]
[346348866,1734903051456,-153.0,0.00019862,2]
[346348867,1734903051466,-153.0,0.00019862,2]
[346348868,1734903051476,-153.0,0.00019862,2]
[346348869,1734903051485,-637.79,0.00019862,2]
[346348870,1734903051495,-150.0,0.00019864,2]
[346348871,1734903051504,-150.0,0.0001987,2]
[346348872,1734903051513,-150.0,0.00019874,2]
[346348873,1734903051523,-23513.99892552,0.00019875,2]
[346348874,1734903051534,-150.0,0.00019875,2]
[346348875,1734903051544,-150.0,0.00019878,2]
[346348876,1734903051553,-150.0,0.00019879,2]
[346348877,1734903051562,-158.45428882,0.0001988,2]
[346348878,1734903051572,-158.45428882,0.0001988,2]
[346348879,1734903051581,-158.45,0.0001988,2]
[346348880,1734903051591,-150.0,0.00019885,2]
[346348881,1734903051600,-150.0,0.00019887,2]
[346348882,1734903051610,-150.0,0.0001989,2]
[346348883,1734903051620,-1500.0,0.00019894,2]
[346348884,1734903051629,-1500.0,0.00019894,2]
[346348885,1734903051638,-100043.8403191,0.00019895,2]
[346348886,1734903051652,-150.0,0.00019896,2]
[346348887,1734903051662,-1500.0,0.00019897,2]
[346348888,1734903051671,-150.0,0.00019898,2]
[346348889,1734903051681,-5800.0,0.000199,2]
[346348890,1734903051691,-2880.0,0.000199,2]
[346348891,1734903051700,-5800.0,0.000199,2]
[346348892,1734903051710,-366.24788264,0.000199,2]
[346348893,1734903051720,-727.22014851,0.000199,2]
[346348894,1734903051730,-4163.41580667,0.000199,2]
[346348895,1734903051739,-126547.73614575,0.000199,2]
[346348896,1734903051748,-15455.78905919,0.000199,2]
[346348897,1734903051757,-178.26107492,0.000199,2]
[346348898,1734903051767,-178.26107492,0.000199,2]
[346348899,1734903051779,-178.26107492,0.000199,2]
[346348900,1734903051791,-178.26,0.000199,2]
[346348901,1734903051800,-254.54907326,0.000199,2]
[346348902,1734903051809,-365.0,0.000199,2]
[346348903,1734903051819,-1000.0,0.000199,2]
[346348904,1734903051829,-18000.19309976,0.000199,2]
[346348905,1734903051839,-1500.0,0.00019901,2]
[346348906,1734903051850,-1500.0,0.00019905,2]
[346348907,1734903051859,-150.0,0.00019907,2]
[346348908,1734903051869,-150.0,0.00019911,2]
[346348909,1734903051879,-150.0,0.00019911,2]
[346348910,1734903051888,-150.0,0.00019917,2]
[346348911,1734903051898,-150.0,0.0001992,2]
[346348912,1734903051907,-150.0,0.00019921,2]
[346348913,1734903051915,-150.0,0.00019924,2]
[346348914,1734903051926,-1500.0,0.00019925,2]
[346348915,1734903051935,-150.0,0.00019927,2]
[346348916,1734903051944,-150.0,0.00019928,2]
[346348917,1734903051953,-150.0,0.00019928,2]
[346348918,1734903051963,-150.0,0.00019928,2]
[346348919,1734903051973,-151.4503723,0.00019928,2]
[346348920,1734903051983,-1500.0,0.0001993,2]
[346348921,1734903051992,-150.0,0.00019932,2]
[346348922,1734903052002,-150.0,0.00019936,2]
[346348923,1734903052011,-150.0,0.00019939,2]
[346348924,1734903052020,-150.0,0.0001994,2]
[346348925,1734903052030,-150.0,0.0001994,2]
[346348926,1734903052039,-150.0,0.00019941,2]
[346348927,1734903052049,-150.0,0.00019943,2]
[346348928,1734903052059,-150.0,0.00019944,2]
[346348929,1734903052068,-1614.58,0.00019946,2]
[346348930,1734903052077,-1112.81,0.00019947,2]
[346348931,1734903052086,-150.0,0.00019947,2]
[346348932,1734903052094,-150.0,0.00019948,2]
[346348933,1734903052103,-150.0,0.00019949,2]
[346348934,1734903052112,-150.0,0.00019953,2]
[346348935,1734903052121,-1500.0,0.00019954,2]
[346348936,1734903052130,-150.0,0.00019955,2]
[346348937,1734903052140,-150.0,0.00019956,2]
[346348938,1734903052151,-150.0,0.00019957,2]
[346348939,1734903052160,-159653.34699418,0.0001996,2]
[346348940,1734903052170,-150.0,0.0001996,2]
[346348941,1734903052181,-150.0,0.00019962,2]
[346348942,1734903052190,-150.0,0.00019963,2]
[346348943,1734903052199,-150.0,0.00019969,2]
[346348944,1734903052208,-400.0,0.0001997,2]
[346348945,1734903052217,-400.0,0.0001997,2]
[346348946,1734903052226,-400.0,0.0001997,2]
[346348947,1734903052235,-400.0,0.0001997,2]
[346348948,1734903052244,-400.0,0.0001997,2]
[346348949,1734903052254,-400.0,0.0001997,2]
[346348950,1734903052263,-410.76098945,0.0001997,2]
[346348951,1734903052272,-150.0,0.0001997,2]
[346348952,1734903052282,-514.0,0.0001997,2]
[346348953,1734903052291,-150.0,0.0001997,2]
[346348954,1734903052300,-150.0,0.0001997,2]
[346348955,1734903052309,-501.75857739,0.00019973,2]
[346348956,1734903052318,-500.7387074,0.00019973,2]
[346348957,1734903052327,-500.0,0.00019973,2]
[346348958,1734903052336,-500.0,0.00019973,2]
[346348959,1734903052346,-500.0,0.00019973,2]
[346348960,1734903052355,-504.82459546,0.00019973,2]
[346348961,1734903052364,-500.0,0.00019973,2]
[346348962,1734903052374,-500.20297702,0.00019973,2]
[346348963,1734903052383,-2839887.20501956,0.0001998,3]
[346348964,1734903052392,-20351.70311585,0.0001998,3]
[346348965,1734903052401,-3497235.19081625,0.0001998,2]
[346348966,1734903052410,-150.0,0.00019982,2]
[346348967,1734903052420,-150.0,0.00019984,2]
[346348968,1734903052430,-150.0,0.00019984,2]
[346348969,1734903052439,-150.0,0.00019984,2]
[346348970,1734903052448,-150.0,0.00019989,2]
[346348971,1734903052458,-21311.78300961,0.0001999,2]
[346348972,1734903052469,-15416.27835465,0.0001999,2]
[346348973,1734903052478,-154.122306,0.00019991,2]
[346348974,1734903052487,-150.0,0.00019991,2]
[346348975,1734903052496,-157.122306,0.00019992,2]
[346348976,1734903052505,-157.122306,0.00019993,2]
[346348977,1734903052514,-157.122306,0.00019994,2]
[346348978,1734903052524,-1500.0,0.00019994,2]
[346348979,1734903052534,-150.0,0.00019995,2]
[346348980,1734903052543,-157.122306,0.00019995,2]
[346348981,1734903052553,-150.0,0.00019995,2]
[346348982,1734903052563,-174.32666672,0.00019996,2]
[346348983,1734903052572,-2131.169509,0.00019996,2]
[346348984,1734903052584,-157.122306,0.00019996,2]
[346348985,1734903052593,-1711.0772985,0.00019996,2]
[346348986,1734903052602,-157.122306,0.00019997,2]
[346348987,1734903052611,-157.122306,0.00019998,2]
[346348988,1734903052620,-150.0,0.00019998,2]
[346348989,1734903052630,-1500.0,0.00019998,2]
[346348990,1734903052639,-300.0,0.00019999,2]
[346348991,1734903052653,-666.0,0.00019999,2]
[346348992,1734903052663,-300.0,0.00019999,2]
[346348993,1734903052672,-300.0,0.00019999,2]
[346348994,1734903052682,-300.0,0.00019999,2]
[346348995,1734903052693,-1000.0,0.00019999,2]
[346348996,1734903052702,-113272.27556688,0.00019999,2]
[346348997,1734903052711,-1000.0,0.00019999,2]
[346348998,1734903052721,-637.79,0.00019999,2]
[346348999,1734903052731,-150.0,0.00019999,2]
[346349000,1734903052740,-1614.58,0.00019999,2]
[346349001,1734903052749,-1614.58,0.00019999,2]
[346349002,1734903052758,-1614.58,0.00019999,2]
[346349003,1734903052767,-1614.58,0.00019999,2]
[346349004,1734903052777,-1614.58,0.00019999,2]
[346349005,1734903052786,-1614.58,0.00019999,2]
[346349006,1734903052795,-1614.58,0.00019999,2]
[346349007,1734903052804,-1614.58,0.00019999,2]
[346349008,1734903052813,-1614.58,0.00019999,2]
[346349009,1734903052822,-1614.67473333,0.00019999,2]
[346349010,1734903052831,-94880.87474971,0.00019999,2]
[346349011,1734903052840,-11891.09685855,0.0002,2]
[346349012,1734903052850,-1000.0,0.0002,3]
[346349013,1734903052859,-1000.0,0.0002,4]
[346349014,1734903052868,-23200333.240783,0.0002,2]
[346349015,1734903052878,-150000.0,0.0002,2]
[346349016,1734903052887,-3957.50103212,0.0002,2]
[346349017,1734903052896,-243029.48965727,0.0002,2]
[346349018,1734903052905,-2771.80477259,0.0002,7]
[346349019,1734903052915,-470.67910585,0.0002,10]
[346349020,1734903052924,-40954.59294647,0.0002,2]
[346349021,1734903052933,-1000.0,0.0002,2]
[346349022,1734903052943,-1000.0,0.0002,2]
[346349023,1734903052952,-1000.0,0.0002,2]
[346349024,1734903052962,-1000.0,0.0002,2]
[346349025,1734903052973,-1000.0,0.0002,2]
[346349026,1734903052983,-1000.0,0.0002,2]
[346349027,1734903052992,-1000.0,0.0002,2]
[346349028,1734903053001,-1000.0,0.0002,2]
[346349029,1734903053010,-150.00481962,0.0002,2]
[346349030,1734903053019,-202.6,0.0002,2]
[346349031,1734903053030,-202.6,0.0002,2]
[346349032,1734903053039,-5000.0,0.0002,7]
[346349033,1734903053048,-5000.0,0.0002,7]
[346349034,1734903053057,-3000.0,0.0002,7]
[346349035,1734903053066,-2110.0,0.0002,2]
[346349036,1734903053075,-2000.0,0.0002,2]
[346349037,1734903053085,-3075.01,0.0002,2]
[346349038,1734903053094,-1000.0,0.0002,2]
[346349039,1734903053103,-1000.0,0.0002,2]
[346349040,1734903053112,-1000.0,0.0002,2]
[346349041,1734903053121,-1000.0,0.0002,2]
[346349042,1734903053130,-1000.0,0.0002,2]
[346349043,1734903053139,-1000.0,0.0002,2]
[346349044,1734903053148,-1000.0,0.0002,2]
[346349045,1734903053157,-1000.0,0.0002,2]
[346349046,1734903053166,-1000.0,0.0002,2]
[346349047,1734903053175,-1000.0,0.0002,2]
[346349048,1734903053185,-1000.0,0.0002,2]
[346349049,1734903053196,-1000.0,0.0002,2]
[346349050,1734903053204,-1000.0,0.0002,2]
[346349051,1734903053214,-3495.6389295,0.0002,2]
[346349052,1734903053223,-1166.0,0.0002,7]
[346349053,1734903053232,-500.0,0.0002,2]
[346349054,1734903053241,-500.0,0.0002,2]
[346349055,1734903053250,-500.0,0.0002,2]
[346349056,1734903053259,-500.0,0.0002,2]
[346349057,1734903053268,-500.0,0.0002,2]
[346349058,1734903053278,-500.0,0.0002,2]
[346349059,1734903053287,-500.0,0.0002,2]
[346349060,1734903053296,-500.0,0.0002,2]
[346349061,1734903053305,-500.0,0.0002,2]
[346349062,1734903053314,-500.0,0.0002,2]
[346349063,1734903053324,-636.31183445,0.0002,2]
[346349064,1734903053334,-435.43620578,0.0002,2]
[346349065,1734903053343,-500.0,0.0002,2]
[346349066,1734903053353,-500.0,0.0002,2]
[346349067,1734903053363,-500.0,0.0002,2]
[346349068,1734903053372,-500.0,0.0002,2]
[346349069,1734903053382,-456.53000016,0.0002,2]
[346349070,1734903053391,-500.0,0.0002,2]
[346349071,1734903053401,-529.54,0.0002,2]
[346349072,1734903053410,-500.0,0.0002,2]
[346349073,1734903053419,-630.56473638,0.0002,2]
[346349074,1734903053428,-500.0,0.0002,2]
[346349075,1734903053437,-872.759093,0.0002,2]
[346349076,1734903053447,-1458.408402,0.0002,2]
[346349077,1734903053456,-500.0,0.0002,2]
[346349078,1734903053466,-470.57483402,0.0002,2]
[346349079,1734903053475,-500.0,0.0002,2]
[346349080,1734903053484,-500.0,0.0002,2]
[346349081,1734903053494,-500.0,0.0002,2]
[346349082,1734903053503,-500.0,0.0002,2]
[346349083,1734903053512,-500.0,0.0002,2]
[346349084,1734903053522,-500.0,0.0002,2]
[346349085,1734903053531,-500.0,0.0002,2]
[346349086,1734903053541,-565.57,0.0002,2]
[346349087,1734903053550,-500.0,0.0002,2]
[346349088,1734903053559,-500.0,0.0002,2]
[346349089,1734903053567,-500.0,0.0002,2]
[346349090,1734903053577,-500.0,0.0002,2]
[346349091,1734903053586,-500.0,0.0002,2]
[346349092,1734903053595,-500.0,0.0002,2]
[346349093,1734903053604,-500.0,0.0002,2]
[346349094,1734903053613,-500.0,0.0002,2]
[346349095,1734903053623,-500.0,0.0002,2]
[346349096,1734903053632,-500.0,0.0002,2]
[346349097,1734903053641,-500.0,0.0002,2]
[346349098,1734903053654,-500.0,0.0002,2]
[346349099,1734903053663,-500.0,0.0002,2]
[346349100,1734903053672,-500.0,0.0002,2]
[346349101,1734903053681,-500.0,0.0002,2]
[346349102,1734903053691,-500.0,0.0002,2]
[346349103,1734903053700,-500.0,0.0002,2]
[346349104,1734903053710,-500.0,0.0002,2]
[346349105,1734903053721,-500.0,0.0002,2]
[346349106,1734903053885,-500.0,0.0002,2]
[346349107,1734903053895,-500.0,0.0002,2]
[346349108,1734903053903,-500.0,0.0002,2]
[346349109,1734903053912,-500.0,0.0002,2]
[346349110,1734903053921,-500.0,0.0002,2]
[346349111,1734903053930,-500.0,0.0002,2]
[346349112,1734903053939,-500.0,0.0002,2]
[346349113,1734903053948,-511.67,0.0002,2]
[346349114,1734903053957,-500.0,0.0002,2]
[346349115,1734903053966,-500.0,0.0002,2]
[346349116,1734903053977,-500.0,0.0002,2]
[346349117,1734903053986,-500.0,0.0002,2]
[346349118,1734903053995,-408.22531967,0.0002,2]
[346349119,1734903054004,-500.0,0.0002,2]
[346349120,1734903054013,-500.0,0.0002,2]
[346349121,1734903054022,-500.0,0.0002,2]
[346349122,1734903054031,-500.0,0.0002,2]
[346349123,1734903054040,-584.41,0.0002,2]
[346349124,1734903054049,-500.0,0.0002,2]
[346349125,1734903054058,-500.0,0.0002,2]
[346349126,1734903054066,-500.0,0.0002,2]
[346349127,1734903054075,-420.93493725,0.0002,2]
[346349128,1734903054084,-500.0,0.0002,2]
[346349129,1734903054092,-500.0,0.0002,2]
[346349130,1734903054101,-500.0,0.0002,2]
[346349131,1734903054111,-845.2,0.0002,2]
[346349132,1734903054120,-1684.83,0.0002,2]
[346349133,1734903054129,-500.0,0.0002,2]
[346349134,1734903054137,-564.66,0.0002,2]
[346349135,1734903054146,-500.0,0.0002,2]
[346349136,1734903054155,-381.18919993,0.0002,2]
[346349137,1734903054164,-500.0,0.0002,2]
[346349138,1734903054173,-500.0,0.0002,2]
[346349139,1734903054182,-500.0,0.0002,2]
[346349140,1734903054191,-2782.67,0.0002,2]
[346349141,1734903054200,-500.0,0.0002,2]
[346349142,1734903054209,-500.0,0.0002,2]
[346349143,1734903054217,-500.0,0.0002,2]
[346349144,1734903054226,-500.0,0.0002,2]
[346349145,1734903054235,-500.0,0.0002,2]
[346349146,1734903054244,-1090.61,0.0002,2]
[346349147,1734903054252,-500.0,0.0002,2]
[346349148,1734903054261,-641.87,0.0002,2]
[346349149,1734903054270,-500.0,0.0002,2]
[346349150,1734903054280,-500.0,0.0002,2]
[346349151,1734903054289,-500.0,0.0002,2]
[346349152,1734903054298,-500.0,0.0002,2]
[346349153,1734903054307,-414.83497898,0.0002,2]
[346349154,1734903054316,-500.0,0.0002,2]
[346349155,1734903054325,-500.0,0.0002,2]
[346349156,1734903054334,-500.0,0.0002,2]
[346349157,1734903054343,-677.05,0.0002,2]
[346349158,1734903054352,-500.0,0.0002,2]
[346349159,1734903054361,-500.0,0.0002,2]
[346349160,1734903054370,-500.0,0.0002,2]
[346349161,1734903054379,-741.82,0.0002,2]
[346349162,1734903054387,-500.0,0.0002,2]
[346349163,1734903054397,-500.0,0.0002,2]
[346349164,1734903054406,-500.0,0.0002,2]
[346349165,1734903054414,-500.0,0.0002,2]
[346349166,1734903054423,-701.0,0.0002,2]
[346349167,1734903054432,-500.0,0.0002,2]
[346349168,1734903054441,-500.0,0.0002,2]
[346349169,1734903054450,-650.93,0.0002,2]
[346349170,1734903054459,-823.95,0.0002,2]
[346349171,1734903054468,-500.0,0.0002,2]
[346349172,1734903054477,-500.0,0.0002,2]
[346349173,1734903054486,-500.0,0.0002,2]
[346349174,1734903054495,-500.0,0.0002,2]
[346349175,1734903054504,-500.0,0.0002,2]
[346349176,1734903054512,-500.0,0.0002,2]
[346349177,1734903054521,-500.0,0.0002,2]
[346349178,1734903054531,-500.0,0.0002,2]
[346349179,1734903054540,-500.0,0.0002,2]
[346349180,1734903054549,-500.0,0.0002,2]
[346349181,1734903054558,-500.0,0.0002,2]
[346349182,1734903054567,-545.62,0.0002,2]
[346349183,1734903054576,-500.0,0.0002,2]
[346349184,1734903054585,-500.0,0.0002,2]
[346349185,1734903054594,-500.0,0.0002,2]
[346349186,1734903054604,-10021.03330535,0.0002,7]
[346349187,1734903054613,-150.0,0.0002,2]
[346349188,1734903054622,-303.9473379,0.0002,2]
[346349189,1734903054631,-500.0,0.0002,2]
[346349190,1734903054640,-500.0,0.0002,2]
[346349191,1734903054654,-500.0,0.0002,2]